[Event "DVM U14 2024"]
[Site "Heidelberg"]
[Date "2024.12.27"]
[Round "2"]
[White "Mueller, Maximilian"]
[Black "Glavev, Danail"]
[Result "1/2-1/2"]
[ECO "D00"]
[WhiteElo "1679"]
[BlackElo "1690"]
[Annotator "NA RC"]
[PlyCount "52"]
[EventDate "2024.12.23"]
[EventType "team-tourn"]
[EventRounds "7"]
[EventCountry "GER"]
[SourceTitle "playchess.com"]
[Source "ChessBase"]
[SourceQuality "1"]
[TimeControl "40/5400+30:1800+30"]

1. d4 {[%emt 0:00:02]} d5 {[%emt 0:00:06]} 2. Bf4 {[%emt 0:00:04]} Nf6 {[%emt 0:00:06]} 3. Nc3 {[%emt 0:00:28]} c5 {[%emt 0:00:27]} 4. dxc5 {[%emt 0:00:22]} d4 {[%emt 0:00:19]} 5. Na4 {[%emt 0:08:01]} Qa5+ {[%emt 0:00:29]} 6. c3 {[%emt 0:00:05]} Bd7 {[%emt 0:02:55]} 7. b3 {[%emt 0:12:19]} dxc3 {[%emt 0:00:57]} 8. Qc2 {[%emt 0:01:36]} Bxa4 {[%emt 0:14:07]} 9. bxa4 {[%emt 0:00:08]} Qxc5 {[%emt 0:04:10]} 10. Rc1 {[%emt 0:03:21]} e5 {[%emt 0:04:29]} 11. Bg3 {[%emt 0:02:49]} Nc6 {[%emt 0:01:05]} 12. e3 {[%emt 0:06:27]} Qa5 {[%emt 0:26:45]} 13. Bb5 {[%emt 0:03:31]} a6 {[%emt 0:07:43]} 14. Bxc6+ {[%emt 0:01:18]} bxc6 {[%emt 0:00:00]} 15. Ne2 {[%emt 0:00:29]} Ba3 {[%emt 0:03:53]} 16. Rb1 {[%emt 0:01:36]} Bb2 {[%emt 0:01:47]} 17. O-O {[%emt 0:00:52]} O-O {[%emt 0:01:05]} 18. Rfd1 {[%emt 0:01:35]} Nd5 {[%emt 0:04:19]} 19. a3 {[%emt 0:02:18]} f5 {[%emt 0:07:22]} 20. Bxe5 {[%emt 0:14:46]} Nxe3 {[%emt 0:05:34]} 21. Qb3+ {[%emt 0:00:14]} Nd5 {[%emt 0:01:42]} 22. Qb7 {[%emt 0:20:10]} Ne7 {[%emt 0:06:29]} 23. Bxc3 {[%emt 0:10:15]} Bxc3 {[%emt 0:01:33]} 24. Nxc3 {[%emt 0:00:11]} Qxc3 {[%emt 0:01:03]} 25. Qxe7 {[%emt 0:01:04]} c5 {[%emt 0:01:29]} 26. Qe6+ {[%emt 0:05:06]} Kh8 {[%emt 0:00:19]} 1/2-1/2

[Event "DVM U14 2024"]
[Site "Heidelberg"]
[Date "2024.12.27"]
[Round "2"]
[White "Maier, Kalle"]
[Black "Li, Xiao Teng"]
[Result "1/2-1/2"]
[ECO "C54"]
[WhiteElo "1673"]
[BlackElo "1661"]
[Annotator "NA RC"]
[PlyCount "70"]
[EventDate "2024.12.23"]
[EventType "team-tourn"]
[EventRounds "7"]
[EventCountry "GER"]
[SourceTitle "playchess.com"]
[Source "ChessBase"]
[SourceQuality "1"]
[TimeControl "40/5400+30:1800+30"]

1. e4 {[%emt 0:00:03]} e5 {[%emt 0:00:05]} 2. Nf3 {[%emt 0:00:04]} Nc6 {[%emt 0:00:03]} 3. Bc4 {[%emt 0:00:04]} Bc5 {[%emt 0:00:05]} 4. c3 {[%emt 0:00:03]} Nf6 {[%emt 0:00:04]} 5. d3 {[%emt 0:00:05]} d6 {[%emt 0:00:14]} 6. O-O {[%emt 0:00:36]} Bg4 {[%emt 0:00:39]} 7. b4 {[%emt 0:00:11]} Bb6 {[%emt 0:00:17]} 8. a4 {[%emt 0:00:09]} a6 {[%emt 0:01:18]} 9. a5 {[%emt 0:00:17]} Ba7 {[%emt 0:00:09]} 10. Be3 {[%emt 0:04:16]} O-O {[%emt 0:00:51]} 11. Nbd2 {[%emt 0:02:40]} h6 {[%emt 0:03:48]} 12. Qc2 {[%emt 0:03:45]} Be6 {[%emt 0:03:01]} 13. Bxa7 {[%emt 0:01:14]} Rxa7 {[%emt 0:00:18]} 14. Rab1 {[%emt 0:02:29]} Ne7 {[%emt 0:06:45]} 15. d4 {[%emt 0:02:13]} exd4 {[%emt 0:01:39]} 16. cxd4 {[%emt 0:00:55]} c6 {[%emt 0:00:32]} 17. Bxe6 {[%emt 0:01:22]} fxe6 {[%emt 0:00:28]} 18. Nb3 {[%emt 0:03:11]} Qe8 {[%emt 0:03:09]} 19. e5 {[%emt 0:04:17]} dxe5 {[%emt 0:00:43]} 20. dxe5 {[%emt 0:00:00]} Nfd5 {[%emt 0:00:09]} 21. Nc5 {[%emt 0:00:52]} Qf7 {[%emt 0:01:00]} 22. Ne4 {[%emt 0:02:44]} Qg6 {[%emt 0:01:40]} 23. Qc5 {[%emt 0:09:41]} Raa8 {[%emt 0:00:29]} 24. Ng3 {[%emt 0:02:07]} Nf5 {[%emt 0:01:21]} 25. Qc2 {[%emt 0:02:33]} Nfe7 {[%emt 0:03:48]} 26. Qxg6 {[%emt 0:00:41]} Nxg6 {[%emt 0:00:14]} 27. Nd4 {[%emt 0:01:39]} Nxe5 {[%emt 0:02:03]} 28. Nxe6 {[%emt 0:08:19]} Rf6 {[%emt 0:00:23]} 29. Nc5 {[%emt 0:03:18]} Rb8 {[%emt 0:01:03]} 30. Ne2 {[%emt 0:02:02]} Rf7 {[%emt 0:01:24]} 31. Nd4 {[%emt 0:03:29]} Nd7 {[%emt 0:03:39]} 32. Rfe1 {[%emt 0:05:17]} Nf8 {[%emt 0:06:49]} 33. g3 {[%emt 0:05:31]} Rd8 {[%emt 0:02:10]} 34. Nde6 {[%emt 0:03:52]} Nxe6 {[%emt 0:01:25]} 35. Rxe6 {[%emt 0:01:08]} Nf6 {[%emt 0:16:55]} 1/2-1/2

[Event "DVM U14 2024"]
[Site "Heidelberg"]
[Date "2024.12.27"]
[Round "2"]
[White "Berbig, Georg"]
[Black "Bodriyenko, Daniel"]
[Result "1-0"]
[ECO "C47"]
[WhiteElo "1666"]
[BlackElo "1694"]
[Annotator "NA RC"]
[PlyCount "103"]
[EventDate "2024.12.23"]
[EventType "team-tourn"]
[EventRounds "7"]
[EventCountry "GER"]
[SourceTitle "playchess.com"]
[Source "ChessBase"]
[SourceQuality "1"]
[TimeControl "40/5400+30:1800+30"]

1. e4 {[%emt 0:00:02]} e5 {[%emt 0:00:07]} 2. Nf3 {[%emt 0:00:06]} Nc6 {[%emt 0:00:12]} 3. Nc3 {[%emt 0:00:06]} Nf6 {[%emt 0:00:08]} 4. a3 {[%emt 0:00:22]} Bc5 {[%emt 0:00:19]} 5. Nxe5 {[%emt 0:00:18]} Nxe5 {[%emt 0:00:34]} 6. d4 {[%emt 0:00:09]} Bxd4 {[%emt 0:00:47]} 7. Qxd4 {[%emt 0:00:10]} Nc6 {[%emt 0:00:33]} 8. Qd1 {[%emt 0:01:30]} h6 {[%emt 0:03:02]} 9. Bc4 {[%emt 0:02:01]} O-O {[%emt 0:01:38]} 10. O-O {[%emt 0:02:05]} Re8 {[%emt 0:01:17]} 11. f3 {[%emt 0:01:59]} d6 {[%emt 0:01:43]} 12. Be3 {[%emt 0:03:55]} Be6 {[%emt 0:04:21]} 13. Bxe6 {[%emt 0:02:33]} Rxe6 {[%emt 0:01:00]} 14. Qd2 {[%emt 0:01:20]} Ne5 {[%emt 0:06:10]} 15. b3 {[%emt 0:06:50]} Qd7 {[%emt 0:02:37]} 16. Rad1 {[%emt 0:04:13]} Rd8 {[%emt 0:05:08]} 17. Nd5 {[%emt 0:05:15]} Ng6 {[%emt 0:02:14]} 18. Nxf6+ {[%emt 0:04:27]} Rxf6 {[%emt 0:01:31]} 19. Qc3 {[%emt 0:02:49]} Re6 {[%emt 0:09:17]} 20. Rd2 {[%emt 0:07:33]} Ne7 {[%emt 0:03:56]} 21. Rfd1 {[%emt 0:01:09]} a6 {[%emt 0:07:05]} 22. Bf4 {[%emt 0:02:51]} f5 {[%emt 0:05:23]} 23. e5 {[%emt 0:11:29]} d5 {[%emt 0:01:59]} 24. Qd3 {[%emt 0:01:14]} c6 {[%emt 0:02:37]} 25. Bg3 {[%emt 0:02:50]} Qc7 {[%emt 0:04:17]} 26. f4 {[%emt 0:08:20]} Kh7 {[%emt 0:11:53]} 27. Bh4 {[%emt 0:02:17]} Qb6+ {[%emt 0:01:55]} 28. Bf2 {[%emt 0:00:21]} Qb5 {[%emt 0:02:03]} 29. c4 {[%emt 0:03:08]} Qa5 {[%emt 0:00:57]} 30. b4 {[%emt 0:00:10]} Qc7 {[%emt 0:00:33]} 31. Qc2 {[%emt 0:00:40]} Qc8 {[%emt 0:03:23]} 32. Bc5 {[%emt 0:01:35]} Kg6 {[%emt 0:01:58]} 33. Bxe7 {[%emt 0:00:15]} Rxe7 {[%emt 0:00:07]} 34. cxd5 {[%emt 0:00:11]} cxd5 {[%emt 0:00:35]} 35. Qxc8 {[%emt 0:00:06]} Rxc8 {[%emt 0:00:05]} 36. Rxd5 {[%emt 0:00:07]} Rcc7 {[%emt 0:00:36]} 37. Rd6+ {[%emt 0:04:05]} Kf7 {[%emt 0:00:12]} 38. Kf2 {[%emt 0:03:33]} Rc4 {[%emt 0:01:44]} 39. Kg3 {[%emt 0:05:15]} g5 {[%emt 0:02:30]} 40. Rf6+ {[%emt 0:00:56]} Ke8 {[%emt 0:01:03]} 41. Rxf5 {[%emt 0:30:29]} gxf4+ {[%emt 0:30:18]} 42. Rxf4 {[%emt 0:00:45]} Rc3+ {[%emt 0:00:52]} 43. Rf3 {[%emt 0:00:26]} Rc6 {[%emt 0:00:25]} 44. Kf4 {[%emt 0:06:55]} Rce6 {[%emt 0:00:41]} 45. Re1 {[%emt 0:00:25]} Kd7 {[%emt 0:00:44]} 46. Kf5 {[%emt 0:00:45]} Kc6 {[%emt 0:00:26]} 47. Rd3 {[%emt 0:01:27]} Re8 {[%emt 0:00:54]} 48. a4 {[%emt 0:00:21]} R8e7 {[%emt 0:00:12]} 49. Rc3+ {[%emt 0:00:29]} Kd7 {[%emt 0:00:50]} 50. Rd1+ {[%emt 0:01:10]} Ke8 {[%emt 0:00:09]} 51. Rd5 {[%emt 0:00:48]} Kf7 {[%emt 0:00:45]} 52. g4 {[%emt 0:00:37]} 1-0

[Event "DVM U14 2024"]
[Site "Heidelberg"]
[Date "2024.12.27"]
[Round "2"]
[White "Madel, Luca"]
[Black "Botschek, Marius"]
[Result "0-1"]
[ECO "A45"]
[WhiteElo "1657"]
[BlackElo "1788"]
[Annotator "NA RC"]
[PlyCount "134"]
[EventDate "2024.12.23"]
[EventType "team-tourn"]
[EventRounds "7"]
[EventCountry "GER"]
[SourceTitle "playchess.com"]
[Source "ChessBase"]
[SourceQuality "1"]
[TimeControl "40/5400+30:1800+30"]

1. d4 {[%emt 0:00:04]} Nf6 {[%emt 0:00:05]} 2. Bf4 {[%emt 0:01:09]} c5 {[%emt 0:00:09]} 3. e3 {[%emt 0:00:26]} Nd5 {[%emt 0:00:06]} 4. Bg3 {[%emt 0:01:31]} Qb6 {[%emt 0:00:07]} 5. b3 {[%emt 0:02:18]} e6 {[%emt 0:03:40]} 6. Nf3 {[%emt 0:01:32]} cxd4 {[%emt 0:01:26]} 7. exd4 {[%emt 0:01:22]} Bb4+ {[%emt 0:01:23]} 8. Nbd2 {[%emt 0:04:14]} Nc3 {[%emt 0:00:44]} 9. Qc1 {[%emt 0:00:33]} Ne4 {[%emt 0:04:02]} 10. Bf4 {[%emt 0:01:47]} Bc3 {[%emt 0:10:58]} 11. Rb1 {[%emt 0:01:54]} Nxd2 {[%emt 0:04:40]} 12. Bxd2 {[%emt 0:00:57]} Bxd4 {[%emt 0:00:54]} 13. Nxd4 {[%emt 0:00:31]} Qxd4 {[%emt 0:00:02]} 14. c4 {[%emt 0:00:45]} Qe4+ {[%emt 0:02:06]} 15. Be2 {[%emt 0:01:19]} Qxg2 {[%emt 0:01:42]} 16. Rf1 {[%emt 0:01:50]} O-O {[%emt 0:02:03]} 17. Bf4 {[%emt 0:01:07]} Nc6 {[%emt 0:02:41]} 18. Qe3 {[%emt 0:01:02]} Qg6 {[%emt 0:02:05]} 19. Bd3 {[%emt 0:01:33]} f5 {[%emt 0:00:05]} 20. Kd2 {[%emt 0:07:48]} Qf6 {[%emt 0:03:57]} 21. Rg1 {[%emt 0:01:30]} g6 {[%emt 0:08:16]} 22. Qe2 {[%emt 0:09:26]} e5 {[%emt 0:04:57]} 23. Bg5 {[%emt 0:01:03]} Qd6 {[%emt 0:00:34]} 24. f3 {[%emt 0:01:24]} Nd4 {[%emt 0:03:06]} 25. Qe3 {[%emt 0:01:29]} b6 {[%emt 0:01:52]} 26. Kc3 {[%emt 0:03:14]} Ne6 {[%emt 0:04:52]} 27. Kc2 {[%emt 0:01:19]} Bb7 {[%emt 0:01:09]} 28. h4 {[%emt 0:07:32]} Bxf3 {[%emt 0:00:38]} 29. Rbf1 {[%emt 0:00:41]} Nd4+ {[%emt 0:00:31]} 30. Kb2 {[%emt 0:00:32]} e4 {[%emt 0:01:54]} 31. Bc2 {[%emt 0:01:53]} Nxc2 {[%emt 0:02:38]} 32. Kxc2 {[%emt 0:00:15]} f4 {[%emt 0:01:12]} 33. Qc3 {[%emt 0:01:23]} Rae8 {[%emt 0:03:09]} 34. Bh6 {[%emt 0:08:37]} Rf7 {[%emt 0:00:21]} 35. Rg5 {[%emt 0:00:43]} Qd3+ {[%emt 0:01:02]} 36. Qxd3 {[%emt 0:00:37]} exd3+ {[%emt 0:00:07]} 37. Kc3 {[%emt 0:01:30]} Be2 {[%emt 0:00:43]} 38. Rf2 {[%emt 0:01:15]} f3 {[%emt 0:01:58]} 39. Rd5 {[%emt 0:01:15]} Re6 {[%emt 0:07:06]} 40. Rd4 {[%emt 0:03:43]} d6 {[%emt 0:02:03]} 41. Kd2 {[%emt 0:31:22]} Rd7 {[%emt 0:37:15]} 42. Kc3 {[%emt 0:05:02]} Kf7 {[%emt 0:01:29]} 43. Bg5 {[%emt 0:02:22]} Kg7 {[%emt 0:02:14]} 44. Bd2 {[%emt 0:01:55]} Rf6 {[%emt 0:01:08]} 45. Bg5 {[%emt 0:00:56]} Rf5 {[%emt 0:00:21]} 46. Bd2 {[%emt 0:04:05]} d5 {[%emt 0:00:58]} 47. Be3 {[%emt 0:01:40]} Kf7 {[%emt 0:00:37]} 48. Kd2 {[%emt 0:01:25]} Ke6 {[%emt 0:00:29]} 49. Rh2 {[%emt 0:01:31]} Re5 {[%emt 0:02:53]} 50. Bf4 {[%emt 0:02:19]} Re4 {[%emt 0:01:01]} 51. cxd5+ {[%emt 0:00:39]} Kf5 {[%emt 0:01:03]} 52. Be3 {[%emt 0:09:33]} Rxd4 {[%emt 0:00:32]} 53. Bxd4 {[%emt 0:00:05]} Rxd5 {[%emt 0:00:33]} 54. Bf2 {[%emt 0:00:54]} Rd7 {[%emt 0:00:43]} 55. Rh1 {[%emt 0:00:00]} Rc7 {[%emt 0:00:00]} 56. Rc1 {[%emt 0:00:00]} Rxc1 {[%emt 0:00:00]} 57. Kxc1 {[%emt 0:00:00]} g5 {[%emt 0:00:00]} 58. hxg5 {[%emt 0:00:00]} Kxg5 {[%emt 0:00:46]} 59. Kd2 {[%emt 0:00:00]} h5 {[%emt 0:00:00]} 60. Ke3 {[%emt 0:00:00]} h4 {[%emt 0:00:00]} 61. a3 {[%emt 0:00:00]} h3 {[%emt 0:00:00]} 62. Bg3 {[%emt 0:00:00]} Kg4 {[%emt 0:00:00]} 63. Bh2 {[%emt 0:00:00]} Bf1 {[%emt 0:00:00]} 64. b4 {[%emt 0:00:00]} Bg2 {[%emt 0:00:00]} 65. Bg1 {[%emt 0:00:00]} d2 {[%emt 0:00:00]} 66. Kxd2 {[%emt 0:00:00]} f2 {[%emt 0:00:00]} 67. Bxf2 {[%emt 0:00:00]} h2 {[%emt 0:00:00]} 0-1

[Event "DVM U14 2024"]
[Site "Heidelberg"]
[Date "2024.12.27"]
[Round "2"]
[White "Laube, Karl"]
[Black "Meijers, Jaroslav"]
[Result "0-1"]
[ECO "D02"]
[WhiteElo "1635"]
[BlackElo "1663"]
[Annotator "NA RC"]
[PlyCount "92"]
[EventDate "2024.12.23"]
[EventType "team-tourn"]
[EventRounds "7"]
[EventCountry "GER"]
[SourceTitle "playchess.com"]
[Source "ChessBase"]
[SourceQuality "1"]
[TimeControl "40/5400+30:1800+30"]

1. d4 {[%emt 0:00:01]} d5 {[%emt 0:00:13]} 2. Bf4 {[%emt 0:00:04]} Bf5 {[%emt 0:00:42]} 3. e3 {[%emt 0:00:06]} Nf6 {[%emt 0:01:00]} 4. Nf3 {[%emt 0:00:10]} e6 {[%emt 0:00:43]} 5. c4 {[%emt 0:00:08]} Be7 {[%emt 0:02:22]} 6. Nc3 {[%emt 0:00:10]} O-O {[%emt 0:00:15]} 7. Bd3 {[%emt 0:01:39]} Bg6 {[%emt 0:05:28]} 8. O-O {[%emt 0:00:19]} Nbd7 {[%emt 0:05:40]} 9. Re1 {[%emt 0:01:08]} dxc4 {[%emt 0:03:42]} 10. Bxc4 {[%emt 0:05:15]} Nb6 {[%emt 0:02:30]} 11. Bd3 {[%emt 0:00:35]} Nbd5 {[%emt 0:01:36]} 12. Nxd5 {[%emt 0:00:32]} Nxd5 {[%emt 0:00:11]} 13. Bg3 {[%emt 0:00:23]} c5 {[%emt 0:01:46]} 14. Rc1 {[%emt 0:01:25]} Qb6 {[%emt 0:05:12]} 15. Bxg6 {[%emt 0:03:48]} hxg6 {[%emt 0:01:07]} 16. Qd2 {[%emt 0:02:37]} Rac8 {[%emt 0:08:29]} 17. b3 {[%emt 0:01:44]} cxd4 {[%emt 0:04:40]} 18. Qxd4 {[%emt 0:01:05]} Qxd4 {[%emt 0:00:30]} 19. Nxd4 {[%emt 0:00:20]} Nb4 {[%emt 0:00:23]} 20. Ra1 {[%emt 0:02:08]} Bf6 {[%emt 0:01:44]} 21. Bd6 {[%emt 0:01:23]} Bxd4 {[%emt 0:01:14]} 22. Bxb4 {[%emt 0:00:24]} Bxa1 {[%emt 0:00:29]} 23. Bxf8 {[%emt 0:00:10]} Bc3 {[%emt 0:02:18]} 24. Rc1 {[%emt 0:01:41]} Kxf8 {[%emt 0:00:11]} 25. g3 {[%emt 0:00:05]} Ke7 {[%emt 0:00:06]} 26. Kf1 {[%emt 0:00:53]} Kd7 {[%emt 0:00:11]} 27. Ke2 {[%emt 0:00:19]} Bb4 {[%emt 0:00:36]} 28. Rd1+ {[%emt 0:00:35]} Ke7 {[%emt 0:00:09]} 29. Rd4 {[%emt 0:00:18]} Rc2+ {[%emt 0:00:21]} 30. Kd1 {[%emt 0:00:24]} Rxf2 {[%emt 0:01:17]} 31. Rxb4 {[%emt 0:00:11]} Rxa2 {[%emt 0:00:15]} 32. Rxb7+ {[%emt 0:00:48]} Kf6 {[%emt 0:00:12]} 33. Rb4 {[%emt 0:00:11]} Rxh2 {[%emt 0:05:19]} 34. Ke1 {[%emt 0:00:37]} g5 {[%emt 0:01:21]} 35. Kf1 {[%emt 0:00:13]} Rb2 {[%emt 0:00:38]} 36. Rb7 {[%emt 0:00:45]} a5 {[%emt 0:00:37]} 37. Rb5 {[%emt 0:00:31]} g6 {[%emt 0:01:20]} 38. Rxa5 {[%emt 0:00:50]} Rxb3 {[%emt 0:00:15]} 39. Kf2 {[%emt 0:00:36]} g4 {[%emt 0:00:54]} 40. Ra2 {[%emt 0:00:35]} Kf5 {[%emt 0:01:37]} 41. Rd2 {[%emt 0:32:03]} e5 {[%emt 0:30:47]} 42. Re2 {[%emt 0:00:41]} Ke4 {[%emt 0:01:46]} 43. Re1 {[%emt 0:00:29]} Rb2+ {[%emt 0:00:13]} 44. Re2 {[%emt 0:00:10]} Rxe2+ {[%emt 0:00:05]} 45. Kxe2 {[%emt 0:00:08]} f5 {[%emt 0:00:10]} 46. Kf2 {[%emt 0:00:10]} Kd3 {[%emt 0:00:06]} 0-1

[Event "DVM U14 2024"]
[Site "Heidelberg"]
[Date "2024.12.27"]
[Round "2"]
[White "Schucht, Adrian"]
[Black "Gorbatschow, Bogdan"]
[Result "1-0"]
[ECO "B13"]
[WhiteElo "1617"]
[BlackElo "1728"]
[Annotator "NA RC"]
[PlyCount "81"]
[EventDate "2024.12.23"]
[EventType "team-tourn"]
[EventRounds "7"]
[EventCountry "GER"]
[SourceTitle "playchess.com"]
[Source "ChessBase"]
[SourceQuality "1"]
[TimeControl "40/5400+30:1800+30"]

1. e4 {[%emt 0:00:03]} c6 {[%emt 0:00:06]} 2. d4 {[%emt 0:00:04]} d5 {[%emt 0:00:06]} 3. exd5 {[%emt 0:00:04]} cxd5 {[%emt 0:00:08]} 4. Bd3 {[%emt 0:00:06]} Nf6 {[%emt 0:02:01]} 5. c3 {[%emt 0:00:51]} Bg4 {[%emt 0:00:25]} 6. Qb3 {[%emt 0:00:49]} Qc7 {[%emt 0:06:14]} 7. h3 {[%emt 0:02:03]} Bd7 {[%emt 0:01:36]} 8. Ne2 {[%emt 0:00:36]} e6 {[%emt 0:02:15]} 9. Bf4 {[%emt 0:00:21]} Qc8 {[%emt 0:02:41]} 10. Nd2 {[%emt 0:02:06]} Bc6 {[%emt 0:01:25]} 11. Nf3 {[%emt 0:00:44]} Be7 {[%emt 0:02:37]} 12. O-O {[%emt 0:02:26]} O-O {[%emt 0:01:13]} 13. Ng3 {[%emt 0:07:58]} Nbd7 {[%emt 0:03:30]} 14. Rfe1 {[%emt 0:01:27]} Nb6 {[%emt 0:04:22]} 15. Qc2 {[%emt 0:02:25]} Rd8 {[%emt 0:00:28]} 16. Ng5 {[%emt 0:02:19]} h6 {[%emt 0:01:14]} 17. Bh7+ {[%emt 0:04:14]} Kf8 {[%emt 0:03:35]} 18. Nxf7 {[%emt 0:05:20]} Kxf7 {[%emt 0:02:45]} 19. Qg6+ {[%emt 0:00:07]} Kf8 {[%emt 0:01:00]} 20. Bxh6 {[%emt 0:05:25]} Ne8 {[%emt 0:10:22]} 21. Nh5 {[%emt 0:04:49]} Bf6 {[%emt 0:05:13]} 22. Nxf6 {[%emt 0:00:38]} gxh6 {[%emt 0:01:55]} 23. Bg8 {[%emt 0:03:43]} Rd7 {[%emt 0:03:54]} 24. Nxd7+ {[%emt 0:05:12]} Qxd7 {[%emt 0:00:18]} 25. Bxe6 {[%emt 0:01:21]} Qg7 {[%emt 0:01:12]} 26. Qf5+ {[%emt 0:01:56]} Qf6 {[%emt 0:00:26]} 27. b3 {[%emt 0:03:36]} Rd8 {[%emt 0:05:35]} 28. Re3 {[%emt 0:02:28]} Qxf5 {[%emt 0:00:47]} 29. Bxf5 {[%emt 0:00:13]} Nd6 {[%emt 0:00:45]} 30. Bd3 {[%emt 0:00:38]} Re8 {[%emt 0:02:21]} 31. Rae1 {[%emt 0:00:57]} Rxe3 {[%emt 0:02:02]} 32. Rxe3 {[%emt 0:00:15]} Kf7 {[%emt 0:00:06]} 33. Kh2 {[%emt 0:00:54]} Ne4 {[%emt 0:00:39]} 34. Rf3+ {[%emt 0:01:04]} Kg7 {[%emt 0:01:59]} 35. Bxe4 {[%emt 0:01:00]} dxe4 {[%emt 0:00:12]} 36. Rf5 {[%emt 0:00:53]} Nd5 {[%emt 0:02:09]} 37. c4 {[%emt 0:00:30]} Nb4 {[%emt 0:00:28]} 38. d5 {[%emt 0:00:24]} Be8 {[%emt 0:00:23]} 39. Re5 {[%emt 0:00:28]} Bg6 {[%emt 0:00:28]} 40. Re7+ {[%emt 0:00:10]} Kf6 {[%emt 0:00:03]} 41. Rxb7 {[%emt 0:30:13]} 1-0

[Event "DVM U14 2024"]
[Site "Heidelberg"]
[Date "2024.12.27"]
[Round "2"]
[White "Zhu, Timo Kaiheng"]
[Black "Obermair, Hannes"]
[Result "1/2-1/2"]
[ECO "D02"]
[WhiteElo "1615"]
[BlackElo "1653"]
[Annotator "NA RC"]
[PlyCount "43"]
[EventDate "2024.12.23"]
[EventType "team-tourn"]
[EventRounds "7"]
[EventCountry "GER"]
[SourceTitle "playchess.com"]
[Source "ChessBase"]
[SourceQuality "1"]
[TimeControl "40/5400+30:1800+30"]

1. d4 {[%emt 0:00:03]} d5 {[%emt 0:00:08]} 2. Bf4 {[%emt 0:00:06]} Nf6 {[%emt 0:00:16]} 3. Nf3 {[%emt 0:00:29]} e6 {[%emt 0:00:34]} 4. e3 {[%emt 0:00:35]} Bd6 {[%emt 0:00:23]} 5. Bxd6 {[%emt 0:00:26]} Qxd6 {[%emt 0:00:08]} 6. Nbd2 {[%emt 0:00:14]} O-O {[%emt 0:00:39]} 7. Bd3 {[%emt 0:00:10]} Nbd7 {[%emt 0:00:45]} 8. O-O {[%emt 0:00:13]} c5 {[%emt 0:00:28]} 9. c4 {[%emt 0:00:51]} b6 {[%emt 0:01:42]} 10. b3 {[%emt 0:00:54]} Bb7 {[%emt 0:01:32]} 11. Qc2 {[%emt 0:01:03]} Rac8 {[%emt 0:01:48]} 12. Rac1 {[%emt 0:00:56]} cxd4 {[%emt 0:05:56]} 13. exd4 {[%emt 0:04:20]} e5 {[%emt 0:02:18]} 14. dxe5 {[%emt 0:02:56]} Nxe5 {[%emt 0:01:32]} 15. Nxe5 {[%emt 0:00:12]} Qxe5 {[%emt 0:00:09]} 16. Qd1 {[%emt 0:00:53]} Rfd8 {[%emt 0:02:03]} 17. Qe2 {[%emt 0:06:32]} Qd4 {[%emt 0:08:14]} 18. Nf3 {[%emt 0:03:28]} Qc5 {[%emt 0:02:03]} 19. Rfd1 {[%emt 0:02:11]} h6 {[%emt 0:03:06]} 20. Qb2 {[%emt 0:04:23]} dxc4 {[%emt 0:16:34]} 21. Rxc4 {[%emt 0:00:36]} Qe7 {[%emt 0:02:16]} 22. Rxc8 {[%emt 0:02:02]} 1/2-1/2

[Event "DVM U14 2024"]
[Site "Heidelberg"]
[Date "2024.12.27"]
[Round "2"]
[White "Scharff, Oskar"]
[Black "Pazar, Ubeyd"]
[Result "1/2-1/2"]
[ECO "B99"]
[WhiteElo "1583"]
[BlackElo "1669"]
[Annotator "NA"]
[PlyCount "103"]
[EventDate "2024.12.23"]
[EventType "team-tourn"]
[EventRounds "7"]
[EventCountry "GER"]
[SourceTitle "playchess.com"]
[Source "ChessBase"]
[SourceQuality "1"]
[TimeControl "40/5400+30:1800+30"]

1. e4 {[%emt 0:00:06]} c5 {[%emt 0:00:02]} 2. Nf3 {[%emt 0:00:10]} d6 {[%emt 0:00:05]} 3. d4 {[%emt 0:00:10]} cxd4 {[%emt 0:00:05]} 4. Nxd4 {[%emt 0:00:06]} a6 {[%emt 0:00:05]} 5. Nc3 {[%emt 0:00:51]} Nf6 {[%emt 0:00:04]} 6. Bg5 {[%emt 0:00:46]} e6 {[%emt 0:00:37]} 7. f4 {[%emt 0:00:36]} Be7 {[%emt 0:00:15]} 8. Qf3 {[%emt 0:00:22]} Qc7 {[%emt 0:00:24]} 9. Bd3 {[%emt 0:01:23]} Nbd7 {[%emt 0:00:51]} 10. O-O-O {[%emt 0:00:49]} b5 {[%emt 0:03:52]} 11. a3 {[%emt 0:02:45]} Bb7 {[%emt 0:00:19]} 12. Rhe1 {[%emt 0:01:15]} h6 {[%emt 0:02:23]} 13. Bh4 {[%emt 0:08:49]} g5 {[%emt 0:03:03]} 14. fxg5 {[%emt 0:02:11]} hxg5 {[%emt 0:00:07]} 15. Bxg5 {[%emt 0:11:53]} Ne5 {[%emt 0:00:53]} 16. Qf1 {[%emt 0:04:29]} Nfg4 {[%emt 0:03:48]} 17. Bxe7 {[%emt 0:03:02]} Qxe7 {[%emt 0:00:10]} 18. h3 {[%emt 0:02:22]} Qg5+ {[%emt 0:00:19]} 19. Rd2 {[%emt 0:02:09]} Ne3 {[%emt 0:00:36]} 20. Nf3 {[%emt 0:21:59]} Nxf1 {[%emt 0:01:07]} 21. Nxg5 {[%emt 0:00:32]} Nxd2 {[%emt 0:00:06]} 22. Kxd2 {[%emt 0:01:28]} Ke7 {[%emt 0:00:37]} 23. Re2 {[%emt 0:07:10]} Rag8 {[%emt 0:00:08]} 24. Nf3 {[%emt 0:00:29]} Nxf3+ {[%emt 0:00:05]} 25. gxf3 {[%emt 0:00:06]} Rxh3 {[%emt 0:00:09]} 26. Rf2 {[%emt 0:01:12]} Rhg3 {[%emt 0:00:46]} 27. Ne2 {[%emt 0:02:17]} Rg2 {[%emt 0:00:23]} 28. Rf1 {[%emt 0:00:09]} d5 {[%emt 0:00:23]} 29. exd5 {[%emt 0:01:30]} Bxd5 {[%emt 0:00:05]} 30. Kd1 {[%emt 0:02:57]} e5 {[%emt 0:00:48]} 31. Nc3 {[%emt 0:11:14]} Bb7 {[%emt 0:00:16]} 32. Be4 {[%emt 0:02:14]} Bxe4 {[%emt 0:04:08]} 33. Nxe4 {[%emt 0:00:13]} Rc8 {[%emt 0:00:32]} 34. Rf2 {[%emt 0:02:45]} Rxf2 {[%emt 0:00:13]} 35. Nxf2 {[%emt 0:00:06]} f5 {[%emt 0:00:09]} 36. c3 {[%emt 0:02:22]} Kf6 {[%emt 0:00:22]} 37. Ke2 {[%emt 0:00:23]} Kg5 {[%emt 0:00:26]} 38. Ke3 {[%emt 0:01:08]} Rd8 {[%emt 0:00:48]} 39. Nd3 {[%emt 0:02:30]} Rxd3+ {[%emt 0:00:03]} 40. Kxd3 {[%emt 0:00:14]} Kf4 {[%emt 0:00:04]} 41. Ke2 {[%emt 0:31:38]} e4 {[%emt 0:30:32]} 42. fxe4 {[%emt 0:00:00]} Kxe4 {[%emt 0:00:00]} 43. b3 {[%emt 0:00:00]} a5 {[%emt 0:00:00]} 44. a4 {[%emt 0:00:00]} bxa4 {[%emt 0:00:00]} 45. bxa4 {[%emt 0:00:00]} f4 {[%emt 0:00:00]} 46. Kf2 {[%emt 0:00:00]} Kd3 {[%emt 0:00:00]} 47. Kf3 {[%emt 0:00:00]} Kxc3 {[%emt 0:00:00]} 48. Kxf4 {[%emt 0:00:03]} Kb4 {[%emt 0:00:00]} 49. Ke3 {[%emt 0:00:30]} Kxa4 {[%emt 0:00:00]} 50. Kd2 {[%emt 0:00:00]} Kb3 {[%emt 0:00:00]} 51. Kc1 {[%emt 0:00:00]} Ka2 {[%emt 0:00:00]} 52. Kc2 {[%emt 0:00:00]} 1/2-1/2